fUSD/lending_fUSD_20260522
["ID","MTS","AMOUNT","RATE_DAILY","PERIOD"]
[422806453,1779429033000,-281.60380507,0.00013597,2]
[422806449,1779429033000,-281.60380507,0.00013597,2]
[422806445,1779429033000,-281.60380507,0.00013597,2]
[422806447,1779429033000,-281.60380507,0.00013597,2]
[422806446,1779429033000,-500.0,0.00013597,2]
[422806452,1779429033000,-500.0,0.00013597,2]
[422806443,1779429033000,-281.60380507,0.00013597,2]
[422806436,1779429033000,-500.0,0.00013597,2]
[422806438,1779429033000,-500.0,0.00013597,2]
[422806439,1779429033000,-281.60380507,0.00013597,2]
[422806440,1779429033000,-500.0,0.00013597,2]
[422806442,1779429033000,-500.0,0.00013597,2]
[422806437,1779429033000,-281.60380507,0.00013597,2]
[422806434,1779429033000,-500.0,0.00013597,2]
[422806435,1779429033000,-281.60380507,0.00013597,2]
[422806454,1779429033000,-500.0,0.00013597,2]
[422806441,1779429033000,-281.60380507,0.00013597,2]
[422806451,1779429033000,-281.60380507,0.00013597,2]
[422806461,1779429033000,-281.60380507,0.00013597,2]
[422806450,1779429033000,-500.0,0.00013597,2]
[422806448,1779429033000,-500.0,0.00013597,2]
[422806472,1779429033000,-1482.28422149,0.00013598,2]
[422806471,1779429033000,-250.0,0.00013598,2]
[422806470,1779429033000,-267.6711325,0.00013598,2]
[422806467,1779429033000,-3921.80164084,0.00013598,2]
[422806468,1779429033000,-1190.69306236,0.00013598,2]
[422806469,1779429033000,-525.79675041,0.00013598,2]
[422806463,1779429033000,-281.60380507,0.00013597,2]
[422806466,1779429033000,-8582.28233501,0.00013598,2]
[422806465,1779429033000,-634.87612888,0.00013598,2]
[422806464,1779429033000,-847.15635041,0.00013598,2]
[422806462,1779429033000,-500.0,0.00013597,2]
[422806459,1779429033000,-281.60380507,0.00013597,2]
[422806458,1779429033000,-500.0,0.00013597,2]
[422806456,1779429033000,-281.60380507,0.00013597,2]
[422806455,1779429033000,-281.60380507,0.00013597,2]
[422806457,1779429033000,-500.0,0.00013597,2]
[422806460,1779429033000,-500.0,0.00013597,2]
[422806477,1779429038000,-1594.46420196,0.00013598,2]
[422806473,1779429038000,-24452.54532216,0.00013598,2]
[422806475,1779429038000,-738.72266429,0.00013598,2]
[422806476,1779429038000,-526.50344134,0.00013598,2]
[422806481,1779429038000,-3869.91001202,0.00013598,2]
[422806479,1779429038000,-2000.0,0.00013598,2]
[422806480,1779429038000,-454.37043806,0.00013598,2]
[422806482,1779429038000,-459.86242947,0.00013598,2]
[422806478,1779429038000,-1539.0,0.00013598,2]
[422806521,1779429040000,-836467.29302026,0.00013598,2]
[422806522,1779429041000,-263.30546805,0.00013598,2]
[422806579,1779429043000,-527.50353436,0.00013598,2]
[422806584,1779429044000,-600.0,0.00013598,2]
[422806585,1779429044000,-1458.670872,0.00013598,2]
[422806583,1779429044000,-717.04264991,0.00013598,2]
[422806581,1779429044000,-388.64047566,0.00013598,2]
[422806580,1779429044000,-17.42174338,0.00013598,2]
[422806587,1779429046000,-52.64597417,0.00013597,2]
[422806589,1779429046000,-281.60380507,0.00013597,2]
[422806590,1779429046000,-14035.30516359,0.00013598,2]
[422806588,1779429046000,-447.35402583,0.00013597,2]
[422806591,1779429046000,-10013.55108292,0.00013598,2]
[422806593,1779429047000,-3415.92988864,0.00013598,2]
[422806592,1779429047000,-517.0,0.00013598,2]
[422806596,1779429246000,-576.240632,0.00013402,2]
[422806597,1779429380000,162.22,6.576e-05,2]
[422806598,1779429579000,-150.0,7.839e-05,2]
[422806599,1779429814000,2372.17,6.2e-07,2]
[422806600,1779429913000,-12.22,7.839e-05,2]
[422806602,1779429951000,-67.5247393,9.103e-05,2]
[422806601,1779429951000,-217.93914962,8.623e-05,2]
[422806616,1779430231000,-1869.77549353,0.00012136,2]
[422806622,1779430231000,-1200.0,0.00012611,2]
[422806620,1779430231000,-167.72,0.00012453,2]
[422806619,1779430231000,-221.3280035,0.00012353,2]
[422806615,1779430231000,-152.80450647,0.00012136,2]
[422806617,1779430231000,-199.0,0.000122,5]
[422806610,1779430231000,-118.69034501,0.00010013,2]
[422806613,1779430231000,-162.22,0.0001163,2]
[422806612,1779430231000,-162.22,0.00010366,2]
[422806611,1779430231000,-381.30965499,0.00010013,2]
[422806609,1779430231000,-94.6952607,9.103e-05,2]
[422806628,1779430231000,-224.0,0.0001274,2]
[422806608,1779430231000,-250.0,9.103e-05,2]
[422806614,1779430231000,-500.0,0.00012105,2]
[422806627,1779430231000,-1113.08,0.00012664,2]
[422806618,1779430231000,-708.54,0.00012352,2]
[422806624,1779430231000,-8746.63,0.00012613,2]
[422806623,1779430231000,-300.0,0.00012612,2]
[422806640,1779430231000,-459.47440624,0.00013496,2]
[422806638,1779430231000,-191.87673345,0.00013496,2]
[422806635,1779430231000,-574.959368,0.00013402,2]
[422806639,1779430231000,-500.0,0.00013496,2]
[422806632,1779430231000,-282.16754384,0.00013398,2]
[422806636,1779430231000,-1000.0,0.00013495,2]
[422806637,1779430231000,-150.0,0.00013495,2]
[422806633,1779430231000,-762.44071536,0.00013398,2]
[422806631,1779430231000,-2500.0,0.00013397,2]
[422806630,1779430231000,-500.0,0.00013302,2]
[422806629,1779430231000,-162.22,0.00012894,2]
[422806625,1779430231000,-391.31597884,0.00012659,2]
[422806626,1779430231000,-200.91964498,0.00012659,2]
[422806634,1779430231000,-221.32800349,0.00013398,2]
[422806621,1779430231000,-162.78,0.0001249,2]
[422806676,1779430232000,-535.99350458,0.00013496,2]
[422806678,1779430232000,-535.99350458,0.00013496,2]
[422806680,1779430232000,-535.99350458,0.00013496,2]
[422806681,1779430232000,-535.99350458,0.00013496,2]
[422806679,1779430232000,-535.99350458,0.00013496,2]
[422806673,1779430232000,-535.99350458,0.00013496,2]
[422806675,1779430232000,-535.99350458,0.00013496,2]
[422806685,1779430232000,-535.99350458,0.00013496,2]
[422806682,1779430232000,-535.99350458,0.00013496,2]
[422806677,1779430232000,-535.99350458,0.00013496,2]
[422806683,1779430232000,-535.99350458,0.00013496,2]
[422806694,1779430232000,-535.99350458,0.00013496,2]
[422806687,1779430232000,-535.99350458,0.00013496,2]
[422806692,1779430232000,-535.99350458,0.00013496,2]
[422806688,1779430232000,-535.99350458,0.00013496,2]
[422806697,1779430232000,-535.99350458,0.00013496,2]
[422806691,1779430232000,-535.99350458,0.00013496,2]
[422806696,1779430232000,-535.99350458,0.00013496,2]
[422806690,1779430232000,-535.99350458,0.00013496,2]
[422806689,1779430232000,-535.99350458,0.00013496,2]
[422806695,1779430232000,-535.99350458,0.00013496,2]
[422806699,1779430232000,-535.99350458,0.00013496,2]
[422806684,1779430232000,-535.99350458,0.00013496,2]
[422806686,1779430232000,-535.99350458,0.00013496,2]
[422806672,1779430232000,-535.99350458,0.00013496,2]
[422806647,1779430232000,-535.99350458,0.00013496,2]
[422806669,1779430232000,-535.99350458,0.00013496,2]
[422806641,1779430232000,-500.0,0.00013496,2]
[422806642,1779430232000,-548.99728891,0.00013496,2]
[422806646,1779430232000,-535.99350458,0.00013496,2]
[422806709,1779430232000,-524.9583442,0.00013496,2]
[422806652,1779430232000,-535.99350458,0.00013496,2]
[422806649,1779430232000,-535.99350458,0.00013496,2]
[422806644,1779430232000,-535.99350458,0.00013496,2]
[422806645,1779430232000,-535.99350458,0.00013496,2]
[422806643,1779430232000,-535.99350458,0.00013496,2]
[422806650,1779430232000,-535.99350458,0.00013496,2]
[422806656,1779430232000,-535.99350458,0.00013496,2]
[422806657,1779430232000,-535.99350458,0.00013496,2]
[422806655,1779430232000,-535.99350458,0.00013496,2]
[422806658,1779430232000,-535.99350458,0.00013496,2]
[422806660,1779430232000,-535.99350458,0.00013496,2]
[422806670,1779430232000,-535.99350458,0.00013496,2]
[422806661,1779430232000,-535.99350458,0.00013496,2]
[422806662,1779430232000,-535.99350458,0.00013496,2]
[422806663,1779430232000,-535.99350458,0.00013496,2]
[422806668,1779430232000,-535.99350458,0.00013496,2]
[422806666,1779430232000,-535.99350458,0.00013496,2]
[422806664,1779430232000,-535.99350458,0.00013496,2]
[422806665,1779430232000,-535.99350458,0.00013496,2]
[422806667,1779430232000,-535.99350458,0.00013496,2]
[422806698,1779430232000,-535.99350458,0.00013496,2]
[422806693,1779430232000,-535.99350458,0.00013496,2]
[422806708,1779430232000,-524.9583442,0.00013496,2]
[422806732,1779430232000,-500.0,0.00013496,2]
[422806728,1779430232000,-524.9583442,0.00013496,2]
[422806733,1779430232000,-500.0,0.00013496,2]
[422806730,1779430232000,-524.9583442,0.00013496,2]
[422806731,1779430232000,-423.41725382,0.00013496,2]
[422806735,1779430232000,-541.97088315,0.00013496,2]
[422806737,1779430232000,-541.97088315,0.00013496,2]
[422806740,1779430232000,-220.27632379,0.00013496,2]
[422806736,1779430232000,-541.97088315,0.00013496,2]
[422806744,1779430232000,-315.50039463,0.00013496,2]
[422806739,1779430232000,-541.97088315,0.00013496,2]
[422806738,1779430232000,-541.97088315,0.00013496,2]
[422806741,1779430232000,-321.69455936,0.00013496,2]
[422806743,1779430232000,-175.96940422,0.00013496,2]
[422806742,1779430232000,-366.00147893,0.00013496,2]
[422806746,1779430232000,-249.58885054,0.00013496,2]
[422806753,1779430232000,-550.23948953,0.00013497,2]
[422806748,1779430232000,-541.97088313,0.00013496,2]
[422806747,1779430232000,-294.25870092,0.00013496,2]
[422806745,1779430232000,-298.38303241,0.00013496,2]
[422806749,1779430232000,-309.88449683,0.00013496,2]
[422806752,1779430232000,-66396.50556055,0.00013497,2]
[422806750,1779430232000,-582.36238754,0.00013496,2]
[422806729,1779430232000,-524.9583442,0.00013496,2]
[422806726,1779430232000,-524.9583442,0.00013496,2]
[422806725,1779430232000,-524.9583442,0.00013496,2]
[422806711,1779430232000,-524.9583442,0.00013496,2]
[422806704,1779430232000,-524.9583442,0.00013496,2]
[422806705,1779430232000,-524.9583442,0.00013496,2]
[422806701,1779430232000,-535.99350458,0.00013496,2]
[422806706,1779430232000,-524.9583442,0.00013496,2]
[422806702,1779430232000,-535.99350458,0.00013496,2]
[422806703,1779430232000,-535.99350458,0.00013496,2]
[422806707,1779430232000,-524.9583442,0.00013496,2]
[422806751,1779430232000,-313264.70509103,0.00013497,2]
[422806710,1779430232000,-524.9583442,0.00013496,2]
[422806712,1779430232000,-524.9583442,0.00013496,2]
[422806727,1779430232000,-524.9583442,0.00013496,2]
[422806713,1779430232000,-524.9583442,0.00013496,2]
[422806700,1779430232000,-535.99350458,0.00013496,2]
[422806719,1779430232000,-524.9583442,0.00013496,2]
[422806720,1779430232000,-524.9583442,0.00013496,2]
[422806721,1779430232000,-524.9583442,0.00013496,2]
[422806717,1779430232000,-524.9583442,0.00013496,2]
[422806718,1779430232000,-524.9583442,0.00013496,2]
[422806714,1779430232000,-524.9583442,0.00013496,2]
[422806715,1779430232000,-524.9583442,0.00013496,2]
[422806716,1779430232000,-524.9583442,0.00013496,2]
[422806724,1779430232000,-524.9583442,0.00013496,2]
[422806734,1779430232000,-388.70096588,0.00013496,2]
[422806723,1779430232000,-524.9583442,0.00013496,2]
[422806722,1779430232000,-524.9583442,0.00013496,2]
[422806760,1779430237000,-437.36111692,0.00013497,2]
[422806761,1779430238000,-2034.56146986,0.00013497,2]
[422806762,1779430238000,-2661.35128144,0.00013497,2]
[422806764,1779430240000,-1334.14287907,0.00013497,2]
[422806765,1779430240000,-634.32712312,0.00013497,2]
[422806779,1779430243000,-31.71820988,0.00013397,2]
[422806778,1779430243000,-1837.71790799,0.00013397,2]
[422806785,1779430246000,-1294.78760561,0.00013497,2]
[422806783,1779430246000,-2042.80203137,0.00013497,2]
[422806784,1779430246000,-327.58848946,0.00013497,2]
[422806782,1779430246000,-256.2522602,0.00013497,2]
[422806780,1779430246000,-630.56388213,0.00013397,2]
[422806781,1779430246000,-68.42220432,0.00013497,2]
[422806796,1779430288000,-197680.9191838,0.00013497,2]
[422806795,1779430288000,-300.0,0.00013496,2]
[422806793,1779430288000,-6868.0808162,0.00013489,2]
[422806794,1779430288000,-151.0,0.00013494,2]
[422806797,1779430324000,-150.0,0.00013092,2]
[422806798,1779430367000,153.71,6.661e-05,2]
[422806799,1779430739000,-150.0,0.00011949,2]
[422806802,1779430924000,631.37079982,0.0001,2]
[422806801,1779430924000,683.2363,0.0001,2]
[422806800,1779430924000,151.0,0.0001,2]
[422806803,1779430948000,3604.9884183,0.000107,2]
[422806804,1779430989000,300.0,0.00014304,51]
[422806805,1779430991000,300.0,0.00014304,62]
[422806806,1779430993000,300.0,0.00014304,67]
[422806807,1779431073000,-218.06163,9.04e-05,2]
[422806808,1779431186000,-150.0,0.0003983,14]
[422806809,1779431226000,300.0,0.00014154,74]
[422806810,1779431346000,-61462.10507022,9.039e-05,2]
[422806811,1779431348000,-39396.0795564,9.039e-05,2]
[422806812,1779431408000,-585.56,9.039e-05,2]
[422806814,1779431431000,-812.72909944,9.039e-05,2]
[422806816,1779431431000,-940.43337771,9.039e-05,2]
[422806817,1779431431000,-83957.20475251,9.039e-05,2]
[422806815,1779431431000,-317.1374225,9.039e-05,2]
[422806884,1779431438000,-696.61375163,9.039e-05,2]
[422806885,1779431438000,-391.3725688,9.039e-05,2]
[422806883,1779431438000,-615.56537493,9.039e-05,2]
[422806881,1779431438000,-902.79276177,9.039e-05,2]
[422806882,1779431438000,-410.77447803,9.039e-05,2]
[422806937,1779431440000,-60369.96852238,9.039e-05,2]
[422806963,1779431443000,-39420.50084933,9.039e-05,2]
[422806964,1779431443000,-793.87387012,9.039e-05,2]
[422806965,1779431443000,-798.13598876,9.039e-05,2]
[422806993,1779431446000,-555.51661271,0.00011829,2]
[422806989,1779431446000,-555.51661277,0.000109,2]
[422806990,1779431446000,-555.51661271,0.00011214,2]
[422806991,1779431446000,-349.50742362,0.00011272,2]
[422806988,1779431446000,-6287.83322367,0.000107,2]
[422806987,1779431446000,-8493.53578942,0.0001,2]
[422806982,1779431446000,-1502.20022915,9.04e-05,2]
[422806984,1779431446000,-208.7374384,9.128e-05,2]
[422806986,1779431446000,-150.0,9.763e-05,2]
[422806985,1779431446000,-150.0,9.128e-05,2]
[422806983,1779431446000,-85384.23336705,9.04e-05,2]
[422806981,1779431446000,-13363.4169042,9.039e-05,2]
[422806995,1779431446000,-500.0,0.00012218,2]
[422806992,1779431446000,-163.46,0.00011405,2]
[422806999,1779431446000,-500.0,0.00012493,2]
[422807011,1779431446000,-402.56,0.00012599,2]
[422806996,1779431446000,-566.83,0.000124,2]
[422807000,1779431446000,-2932.287,0.00012599,2]
[422807008,1779431446000,-845.0235,0.00012599,2]
[422807009,1779431446000,-1918.0521435,0.00012599,2]
[422807006,1779431446000,-2430.59892602,0.00012599,2]
[422807004,1779431446000,-605.53870129,0.00012599,2]
[422807007,1779431446000,-1454.34702,0.00012599,2]
[422807010,1779431446000,-279.458431,0.00012599,2]
[422807002,1779431446000,-45669.43947372,0.00012599,2]
[422807003,1779431446000,-1394.29459015,0.00012599,2]
[422807001,1779431446000,-2500.0,0.00012599,2]
[422806998,1779431446000,-555.51661271,0.00012443,2]
[422806994,1779431446000,-575.6,0.00012028,2]
[422806997,1779431446000,-153.41,0.00012433,2]
[422807005,1779431446000,-919.10183101,0.00012599,2]
[422807025,1779431475000,165.1,7e-05,2]
[422807024,1779431475000,116.37128133,6.25e-05,2]
[422807023,1779431475000,48.72871867,6.25e-05,2]
[422807026,1779431658000,-150.0,7.519e-05,2]
[422807027,1779431757000,200.0,5e-05,30]
[422807028,1779431766000,150.0,7.293e-05,2]
[422807029,1779431800000,-150.0,7.519e-05,2]
[422807030,1779431827000,150.0,7.293e-05,2]
[422807031,1779431984000,-150.0,7.751e-05,2]
[422807032,1779432109000,2891.169427,1.99e-05,7]
[422807033,1779432325000,-15.1,7.751e-05,2]
[422807034,1779432342000,-250.0,8.126e-05,2]
[422807036,1779432342000,-250.0,8.526e-05,2]
[422807035,1779432342000,-165.1,8.502e-05,2]
[422807037,1779432342000,-250.0,8.99e-05,2]
[422807041,1779432358000,-303.73424296,0.0001,2]
[422807040,1779432358000,-419.8929041,9.58e-05,2]
[422807043,1779432627000,152.62,6.687e-05,2]
[422807042,1779432627000,152.62,5.764e-05,2]
[422807044,1779432628000,152.62,7.61e-05,2]
[422807070,1779432634000,-500.0,0.00010974,2]
[422807073,1779432634000,-303.44,0.00011275,2]
[422807072,1779432634000,-500.0,0.00011248,2]
[422807077,1779432634000,-500.39999897,0.00011522,2]
[422807075,1779432634000,-3482.91,0.00011392,2]
[422807074,1779432634000,-152.62,0.00011302,2]
[422807078,1779432634000,-150.0,0.00011522,2]
[422807076,1779432634000,-150.0,0.00011397,2]
[422807080,1779432634000,-182.06,0.00011624,2]
[422807082,1779432634000,-500.0,0.00011657,2]
[422807071,1779432634000,-3482.91,0.00011121,2]
[422807083,1779432634000,-500.0,0.00011657,2]
[422807085,1779432634000,-500.0,0.00011657,2]
[422807091,1779432634000,-500.0,0.00011657,2]
[422807088,1779432634000,-500.0,0.00011657,2]
[422807086,1779432634000,-500.0,0.00011657,2]
[422807092,1779432634000,-500.0,0.00011657,2]
[422807087,1779432634000,-500.0,0.00011657,2]
[422807081,1779432634000,-503.40654584,0.00011657,2]
[422807066,1779432634000,-170.01,0.00010801,2]
[422807050,1779432634000,-136.42074581,0.0001,2]
[422807069,1779432634000,-150.0,0.00010959,2]
[422807047,1779432634000,-152.62,8.533e-05,2]
[422807049,1779432634000,-162.05685263,0.0001,2]
[422807052,1779432634000,-208.7374384,0.00010058,2]
[422807048,1779432634000,-152.62,9.456e-05,2]
[422807051,1779432634000,-339.0,0.0001,2]
[422807089,1779432634000,-500.0,0.00011657,2]
[422807053,1779432634000,-298.47759844,0.00010314,2]
[422807059,1779432634000,-298.47759844,0.000107,2]
[422807055,1779432634000,-152.62,0.00010379,2]
[422807067,1779432634000,-3482.91,0.0001085,2]
[422807056,1779432634000,-351.44909949,0.00010648,2]
[422807058,1779432634000,-623.49503432,0.00010648,2]
[422807057,1779432634000,-278.52586619,0.00010648,2]
[422807060,1779432634000,-500.0,0.000107,2]
[422807062,1779432634000,-165.44,0.00010712,2]
[422807061,1779432634000,-1319.27,0.00010706,2]
[422807063,1779432634000,-1200.0,0.00010744,2]
[422807064,1779432634000,-3952.89,0.00010745,2]
[422807065,1779432634000,-723.73,0.00010762,2]
[422807068,1779432634000,-341.5581674,0.00010897,2]
[422807054,1779432634000,-339.0,0.00010378,2]
[422807093,1779432634000,-574.71600765,0.00011657,2]
[422807079,1779432634000,-204.97,0.00011522,2]
[422807090,1779432634000,-286.69602649,0.00011657,2]
[422807127,1779432634000,-488.8280538,0.00011657,2]
[422807128,1779432634000,-3482.91,0.00011664,2]
[422807119,1779432634000,-642.0,0.00011657,2]
[422807120,1779432634000,-642.0,0.00011657,2]
[422807121,1779432634000,-656.48237153,0.00011657,2]
[422807116,1779432634000,-642.0,0.00011657,2]
[422807122,1779432634000,-500.0,0.00011657,2]
[422807118,1779432634000,-642.0,0.00011657,2]
[422807125,1779432634000,-500.0,0.00011657,2]
[422807129,1779432634000,-1440.0,0.00011818,2]
[422807124,1779432634000,-500.0,0.00011657,2]
[422807131,1779432634000,-500.0,0.00011931,2]
[422807130,1779432634000,-1000.0,0.0001193,2]
[422807132,1779432634000,-500.0,0.00011931,2]
[422807133,1779432634000,-385.40743909,0.00011931,2]
[422807135,1779432634000,-1082.0,0.00011931,2]
[422807136,1779432634000,-1082.0,0.00011931,2]
[422807134,1779432634000,-1082.0,0.00011931,2]
[422807137,1779432634000,-1082.0,0.00011931,2]
[422807084,1779432634000,-500.0,0.00011657,2]
[422807126,1779432634000,-500.0,0.00011657,2]
[422807117,1779432634000,-642.0,0.00011657,2]
[422807123,1779432634000,-500.0,0.00011657,2]
[422807112,1779432634000,-642.0,0.00011657,2]
[422807095,1779432634000,-500.0,0.00011657,2]
[422807113,1779432634000,-642.0,0.00011657,2]
[422807098,1779432634000,-642.0,0.00011657,2]
[422807094,1779432634000,-500.0,0.00011657,2]
[422807097,1779432634000,-627.37571125,0.00011657,2]
[422807096,1779432634000,-500.0,0.00011657,2]
[422807099,1779432634000,-642.0,0.00011657,2]
[422807103,1779432634000,-642.0,0.00011657,2]
[422807101,1779432634000,-642.0,0.00011657,2]
[422807102,1779432634000,-642.0,0.00011657,2]
[422807100,1779432634000,-642.0,0.00011657,2]
[422807115,1779432634000,-642.0,0.00011657,2]
[422807104,1779432634000,-642.0,0.00011657,2]
[422807110,1779432634000,-642.0,0.00011657,2]
[422807106,1779432634000,-642.0,0.00011657,2]
[422807107,1779432634000,-642.0,0.00011657,2]
[422807108,1779432634000,-642.0,0.00011657,2]
[422807114,1779432634000,-642.0,0.00011657,2]
[422807105,1779432634000,-642.0,0.00011657,2]
[422807109,1779432634000,-642.0,0.00011657,2]
[422807111,1779432634000,-642.0,0.00011657,2]
[422807171,1779432635000,-1082.0,0.00011931,2]
[422807175,1779432635000,-1082.0,0.00011931,2]
[422807176,1779432635000,-1089.80280846,0.00011931,2]
[422807170,1779432635000,-500.0,0.00011931,2]
[422807172,1779432635000,-345.0,0.00011931,2]
[422807163,1779432635000,-1082.0,0.00011931,2]
[422807166,1779432635000,-500.0,0.00011931,2]
[422807173,1779432635000,-1082.0,0.00011931,2]
[422807164,1779432635000,-500.0,0.00011931,2]
[422807177,1779432635000,-500.0,0.00011931,2]
[422807168,1779432635000,-500.0,0.00011931,2]
[422807178,1779432635000,-260.8998504,0.00011931,2]
[422807188,1779432635000,-450.87378877,0.00011931,2]
[422807181,1779432635000,-500.0,0.00011931,2]
[422807180,1779432635000,-500.0,0.00011931,2]
[422807182,1779432635000,-500.0,0.00011931,2]
[422807184,1779432635000,-500.0,0.00011931,2]
[422807183,1779432635000,-500.0,0.00011931,2]
[422807185,1779432635000,-150.0,0.00011931,2]
[422807197,1779432635000,-500.0,0.00011931,2]
[422807187,1779432635000,-218.28993985,0.00011931,2]
[422807186,1779432635000,-500.0,0.00011931,2]
[422807189,1779432635000,-500.0,0.00011931,2]
[422807194,1779432635000,-150.0,0.00011931,2]
[422807190,1779432635000,-164.10866273,0.00011931,2]
[422807179,1779432635000,-500.0,0.00011931,2]
[422807165,1779432635000,-500.0,0.00011931,2]
[422807145,1779432635000,-1082.0,0.00011931,2]
[422807174,1779432635000,-1082.0,0.00011931,2]
[422807140,1779432635000,-1082.0,0.00011931,2]
[422807141,1779432635000,-1082.0,0.00011931,2]
[422807139,1779432635000,-1082.0,0.00011931,2]
[422807138,1779432635000,-1082.0,0.00011931,2]
[422807153,1779432635000,-1082.0,0.00011931,2]
[422807143,1779432635000,-1082.0,0.00011931,2]
[422807142,1779432635000,-1082.0,0.00011931,2]
[422807144,1779432635000,-1082.0,0.00011931,2]
[422807148,1779432635000,-500.0,0.00011931,2]
[422807146,1779432635000,-500.0,0.00011931,2]
[422807149,1779432635000,-1082.0,0.00011931,2]
[422807152,1779432635000,-500.0,0.00011931,2]
[422807147,1779432635000,-1082.0,0.00011931,2]
[422807151,1779432635000,-1082.0,0.00011931,2]
[422807150,1779432635000,-500.0,0.00011931,2]
[422807155,1779432635000,-500.0,0.00011931,2]
[422807154,1779432635000,-500.0,0.00011931,2]
[422807156,1779432635000,-500.0,0.00011931,2]
[422807157,1779432635000,-1082.0,0.00011931,2]
[422807158,1779432635000,-500.0,0.00011931,2]
[422807160,1779432635000,-500.0,0.00011931,2]
[422807159,1779432635000,-500.0,0.00011931,2]
[422807161,1779432635000,-500.0,0.00011931,2]
[422807162,1779432635000,-500.0,0.00011931,2]
[422807169,1779432635000,-1082.0,0.00011931,2]
[422807167,1779432635000,-500.0,0.00011931,2]
[422807192,1779432635000,-500.0,0.00011931,2]
[422807222,1779432635000,-255.0,0.00012582,2]
[422807196,1779432635000,-150.0,0.00011931,2]
[422807223,1779432635000,-151.0,0.00012595,2]
[422807230,1779432635000,-300.0,0.00012598,2]
[422807227,1779432635000,-300.0,0.00012598,2]
[422807224,1779432635000,-151.0,0.00012596,2]
[422807228,1779432635000,-666.0,0.00012598,2]
[422807231,1779432635000,-666.0,0.00012598,2]
[422807232,1779432635000,-300.0,0.00012598,2]
[422807235,1779432635000,-152.0,0.00012807,7]
[422807242,1779432635000,-250.0,0.00013213,2]
[422807234,1779432635000,-152.0,0.00012679,7]
[422807237,1779432635000,-686.1966438,0.00012903,2]
[422807241,1779432635000,-686.1966438,0.00013152,2]
[422807239,1779432635000,-2042.80203137,0.00013,15]
[422807238,1779432635000,-204.97,0.00012962,2]
[422807236,1779432635000,-152.0,0.00012839,7]
[422807243,1779432635000,-1253.47,0.0001331,2]
[422807240,1779432635000,-200.13400693,0.00013091,2]
[422807245,1779432635000,-686.1966438,0.00013402,2]
[422807248,1779432635000,-150.0,0.00013488,2]
[422807246,1779432635000,-150.0,0.00013488,2]
[422807250,1779432635000,-150.0,0.00013488,2]
[422807249,1779432635000,-150.0,0.00013488,2]
[422807251,1779432635000,-150.42432873,0.00013488,2]
[422807247,1779432635000,-150.0,0.00013488,2]
[422807191,1779432635000,-500.0,0.00011931,2]
[422807233,1779432635000,-686.19664386,0.00012653,2]
[422807225,1779432635000,-151.0,0.00012596,2]
[422807244,1779432635000,-1588.0,0.000134,2]
[422807226,1779432635000,-151.0,0.00012596,2]
[422807229,1779432635000,-300.0,0.00012598,2]
[422807193,1779432635000,-414.61492121,0.00011931,2]
[422807195,1779432635000,-151.580843,0.00011931,2]
[422807200,1779432635000,-501.16177118,0.00011931,2]
[422807199,1779432635000,-150.0,0.00011931,2]
[422807198,1779432635000,-150.0,0.00011931,2]
[422807202,1779432635000,-150.0,0.00011931,2]
[422807209,1779432635000,-150.0,0.00011931,2]
[422807210,1779432635000,-150.0,0.00011931,2]
[422807203,1779432635000,-150.0,0.00011931,2]
[422807207,1779432635000,-150.0,0.00011931,2]
[422807205,1779432635000,-150.0,0.00011931,2]
[422807208,1779432635000,-244.15033115,0.00011931,2]
[422807201,1779432635000,-150.0,0.00011931,2]
[422807206,1779432635000,-150.0,0.00011931,2]
[422807218,1779432635000,-162.05,0.00012329,2]
[422807204,1779432635000,-164.56560636,0.00011931,2]